fUST/lending_fUST_20250613
["ID","MTS","AMOUNT","RATE_DAILY","PERIOD"]
[365637490,1749815438261,-747.12,0.00022729,3]
[365637492,1749815438271,-300.0,0.00022738,4]
[365637494,1749815438280,-3811.09,0.00022738,4]
[365637496,1749815438289,-784.87,0.00022738,4]
[365637498,1749815438298,-1002.43,0.00022738,4]
[365637500,1749815438308,-460.0,0.00022739,4]
[365637502,1749815438317,-460.0,0.00022739,4]
[365637504,1749815438328,-320.0,0.00022739,4]
[365637506,1749815438339,-460.0,0.00022739,2]
[365637508,1749815438349,-151.0,0.00022739,7]
[365637510,1749815438358,-570.74,0.00022739,4]
[365637512,1749815438368,-151.0,0.00022739,7]
[365637514,1749815438377,-320.0,0.00022739,4]
[365637516,1749815438388,-300.0,0.00022739,4]
[365637518,1749815438397,-273.18552,0.00022739,7]
[365637520,1749815438408,-273.18552,0.00022739,7]
[365637522,1749815438417,-460.0,0.00022739,4]
[365637524,1749815438427,-1085.57,0.00022739,4]
[365637526,1749815438436,-550.0,0.00022739,4]
[365637528,1749815438445,-460.0,0.00022739,4]
[365637530,1749815438455,-902.13,0.00022739,4]
[365637531,1749815438464,-151.0,0.00022739,7]
[365637533,1749815438473,-1261.48,0.00022739,4]
[365637534,1749815438482,-460.0,0.00022739,4]
[365637535,1749815438492,-460.0,0.00022739,4]
[365637537,1749815438502,-460.0,0.00022739,4]
[365637538,1749815438511,-503.78118836,0.00022739,4]
[365637540,1749815438519,-526.07,0.00022739,4]
[365637542,1749815438528,-460.0,0.00022739,4]
[365637544,1749815438538,-665.95,0.00022739,4]
[365637546,1749815438547,-1929.783163,0.00022739,2]
[365637548,1749815438556,-1929.783163,0.00022739,2]
[365637550,1749815438565,-806.06,0.00022739,4]
[365637552,1749815438575,-460.0,0.00022739,4]
[365637554,1749815438584,-460.0,0.00022739,4]
[365637556,1749815438594,-460.0,0.00022739,4]
[365637559,1749815438605,-593.59,0.00022739,4]
[365637561,1749815438614,-1327.7,0.00022739,4]
[365637563,1749815438624,-460.0,0.00022739,4]
[365637565,1749815438634,-460.0,0.00022739,4]
[365637566,1749815438644,-903.85,0.00022739,4]
[365637568,1749815438655,-1473.46,0.00022739,4]
[365637571,1749815438665,-151.0,0.0002279,7]
[365637573,1749815438674,-1900.537935,0.00022821,3]
[365637575,1749815438684,-964.0,0.00022826,2]
[365637577,1749815438694,-407.078,0.00022826,2]
[365637579,1749815438703,-655.847,0.00022826,2]
[365637581,1749815438712,-2160.0,0.00022826,2]
[365637583,1749815438721,-960.19082361,0.00022866,8]
[365637585,1749815438730,-160.0,0.00022886,4]
[365637587,1749815438739,-153.62936366,0.00022895,2]
[365637589,1749815438748,-364.0,0.00022896,2]
[365637591,1749815438758,-11913.3545961,0.00022913,2]
[365637593,1749815438767,-500.0,0.00022916,2]
[365637595,1749815438776,-420.0,0.00022943,2]
[365637597,1749815438786,-161.44966308,0.00022959,2]
[365637599,1749815438795,-520.0,0.00022962,2]
[365637601,1749815438804,-1100.0,0.00022984,2]
[365637603,1749815438815,-1100.0,0.00022988,2]
[365637605,1749815438824,-1100.0,0.00022996,2]
[365637607,1749815438833,-151.0,0.00023,7]
[365637609,1749815438842,-151.0,0.00023,7]
[365637611,1749815438851,-151.0,0.00023,7]
[365637613,1749815438860,-151.0,0.00023,7]
[365637615,1749815438870,-5000.0,0.00023001,2]
[365637617,1749815438879,-960.19082361,0.00023003,8]
[365637619,1749815438890,-1100.0,0.00023006,2]
[365637621,1749815438899,-441.79506932,0.00023009,2]
[365637623,1749815438908,-3811.09,0.00023012,4]
[365637625,1749815438918,-784.87,0.00023012,4]
[365637627,1749815438928,-1002.43,0.00023012,4]
[365637629,1749815438938,-300.0,0.00023013,4]
[365637631,1749815438948,-151.0,0.00023013,7]
[365637633,1749815438958,-300.0,0.00023013,4]
[365637635,1749815438968,-460.0,0.00023013,2]
[365637636,1749815438977,-570.74,0.00023013,4]
[365637639,1749815438987,-460.0,0.00023013,4]
[365637641,1749815438997,-151.0,0.00023013,7]
[365637643,1749815439006,-1085.57,0.00023013,4]
[365637645,1749815439015,-460.0,0.00023013,4]
[365637647,1749815439024,-902.13,0.00023013,4]
[365637649,1749815439034,-1261.48,0.00023013,4]
[365637650,1749815439043,-460.0,0.00023013,4]
[365637652,1749815439053,-151.0,0.00023013,7]
[365637655,1749815439063,-460.0,0.00023013,4]
[365637657,1749815439073,-460.0,0.00023013,4]
[365637658,1749815439083,-460.0,0.00023013,4]
[365637661,1749815439093,-665.95,0.00023013,4]
[365637662,1749815439102,-806.06,0.00023013,4]
[365637664,1749815439112,-460.0,0.00023013,4]
[365637666,1749815439121,-220.0,0.00023013,4]
[365637668,1749815439131,-460.0,0.00023013,4]
[365637670,1749815439144,-593.59,0.00023013,4]
[365637673,1749815439154,-1327.7,0.00023013,4]
[365637674,1749815439164,-460.0,0.00023013,4]
[365637677,1749815439174,-460.0,0.00023013,4]
[365637679,1749815439184,-903.85,0.00023013,4]
[365637680,1749815439193,-1473.46,0.00023013,4]
[365637682,1749815439204,-183.0,0.00023014,7]
[365637684,1749815439214,-187.94426926,0.00023023,2]
[365637686,1749815439224,-1100.0,0.00023038,2]
[365637688,1749815439233,-431.21092266,0.00023044,2]
[365637690,1749815439242,-1100.0,0.00023054,2]
[365637692,1749815439252,-500.0,0.00023061,2]
[365637694,1749815439262,-1500.0,0.00023092,2]
[365637696,1749815439272,-1100.0,0.00023102,2]
[365637698,1749815439281,-441.79506932,0.00023115,2]
[365637700,1749815439291,-1100.0,0.00023127,2]
[365637702,1749815439301,-960.19082361,0.00023141,8]
[365637704,1749815439311,-500.0,0.00023156,2]
[365637706,1749815439320,-1100.0,0.00023157,2]
[365637709,1749815439335,-165.141644,0.00023182,2]
[365637710,1749815439346,-151.0,0.000232,7]
[365637712,1749815439355,-151.0,0.000232,7]
[365637714,1749815439365,-151.0,0.000232,7]
[365637716,1749815439375,-671.753223,0.000232,7]
[365637718,1749815439387,-671.753223,0.000232,7]
[365637720,1749815439396,-185.631619,0.000232,7]
[365637722,1749815439406,-185.631619,0.000232,7]
[365637724,1749815439416,-12531.02669373,0.000232,7]
[365637726,1749815439426,-844.94977992,0.000232,7]
[365637728,1749815439435,-500.0,0.0002322,2]
[365637730,1749815439445,-500.0,0.00023248,2]
[365637732,1749815439455,-161.44966308,0.0002326,2]
[365637734,1749815439464,-500.0,0.00023277,2]
[365637736,1749815439474,-1100.0,0.00023279,2]
[365637738,1749815439483,-960.19082361,0.00023279,8]
[365637740,1749815439493,-1100.0,0.0002328,2]
[365637742,1749815439503,-1100.0,0.00023286,2]
[365637744,1749815439512,-3811.09,0.00023286,4]
[365637746,1749815439522,-784.87,0.00023286,4]
[365637748,1749815439531,-1002.43,0.00023286,4]
[365637750,1749815439541,-151.0,0.00023287,2]
[365637752,1749815439551,-460.0,0.00023287,2]
[365637754,1749815439561,-570.74,0.00023287,4]
[365637756,1749815439571,-273.18552,0.00023287,7]
[365637758,1749815439580,-273.18552,0.00023287,7]
[365637760,1749815439590,-460.0,0.00023287,4]
[365637762,1749815439599,-1085.57,0.00023287,4]
[365637764,1749815439609,-460.0,0.00023287,4]
[365637766,1749815439618,-902.13,0.00023287,4]
[365637768,1749815439628,-1261.48,0.00023287,4]
[365637770,1749815439638,-460.0,0.00023287,4]
[365637772,1749815439648,-460.0,0.00023287,4]
[365637774,1749815439658,-200.0,0.00023287,4]
[365637777,1749815439667,-460.0,0.00023287,4]
[365637779,1749815439676,-665.95,0.00023287,4]
[365637781,1749815439685,-806.06,0.00023287,4]
[365637783,1749815439695,-460.0,0.00023287,4]
[365637785,1749815439704,-407.65980576,0.00023287,4]
[365637788,1749815439714,-593.59,0.00023287,4]
[365637790,1749815439724,-1327.7,0.00023287,4]
[365637793,1749815439733,-224.39,0.00023287,4]
[365637796,1749815439742,-220.0,0.00023287,4]
[365637799,1749815439751,-903.85,0.00023287,4]
[365637801,1749815439761,-1473.46,0.00023287,4]
[365637803,1749815439770,-151.0,0.0002329,7]
[365637805,1749815439779,-151.0,0.0002329,7]
[365637807,1749815439789,-151.0,0.0002329,7]
[365637809,1749815439798,-151.0,0.0002329,7]
[365637811,1749815439808,-1929.783163,0.0002329,2]
[365637825,1749815439914,-1929.783163,0.0002329,2]
[365637827,1749815439923,-224.060465,0.0002329,7]
[365637829,1749815439932,-1100.0,0.00023292,2]
[365637831,1749815439942,-1100.0,0.00023295,2]
[365637833,1749815439951,-153.62936366,0.00023297,2]
[365637835,1749815439960,-165.883522,0.000233,7]
[365637837,1749815439969,-165.883522,0.000233,7]
[365637838,1749815439979,-154.827287,0.000233,7]
[365637840,1749815439988,-151.0,0.000233,7]
[365637842,1749815439998,-151.0,0.000233,6]
[365637844,1749815440007,-151.0,0.000233,7]
[365637846,1749815440017,-151.0,0.000233,7]
[365637848,1749815440026,-151.0,0.000233,7]
[365637851,1749815440036,-257.168339,0.000233,7]
[365637852,1749815440045,-151.0,0.000233,7]
[365637854,1749815440055,-151.0,0.000233,7]
[365637856,1749815440064,-151.0,0.000233,10]
[365637857,1749815440074,-151.0,0.000233,7]
[365637858,1749815440084,-213.07,0.000233,2]
[365637859,1749815440094,-151.0,0.000233,7]
[365637860,1749815440104,-151.0,0.000233,7]
[365637861,1749815440113,-151.0,0.000233,7]
[365637862,1749815440123,-151.0,0.000233,7]
[365637863,1749815440134,-151.0,0.000233,7]
[365637864,1749815440145,-418.19479,0.000233,7]
[365637865,1749815440155,-151.0,0.000233,7]
[365637866,1749815440166,-418.19479,0.000233,7]
[365637867,1749815440176,-151.0,0.000233,7]
[365637868,1749815440186,-151.0,0.000233,7]
[365637869,1749815440196,-151.0,0.000233,7]
[365637870,1749815440206,-151.0,0.000233,7]
[365637871,1749815440216,-151.0,0.000233,7]
[365637872,1749815440226,-671.753223,0.000233,7]
[365637873,1749815440236,-671.753223,0.000233,7]
[365637874,1749815440246,-151.0,0.000233,7]
[365637875,1749815440256,-168.191211,0.000233,7]
[365637876,1749815440266,-185.631619,0.000233,7]
[365637877,1749815440276,-185.631619,0.000233,7]
[365637878,1749815440285,-273.18552,0.000233,7]
[365637879,1749815440295,-273.18552,0.000233,7]
[365637880,1749815440304,-151.0,0.000233,7]
[365637881,1749815440313,-187.606472,0.000233,2]
[365637882,1749815440322,-151.0,0.000233,7]
[365637883,1749815440337,-65398.5681219,0.000233,2]
[365637884,1749815440347,-1100.0,0.00023303,2]
[365637885,1749815440357,-500.0,0.0002331,2]
[365637886,1749815440368,-428017.61901872,0.00023333,2]
[365637887,1749815440378,-500.0,0.00023335,2]
[365637888,1749815440389,-151.0,0.00023335,7]
[365637889,1749815440398,-151.0,0.00023335,7]
[365637890,1749815440409,-168.0,0.00023335,7]
[365637891,1749815440419,-251.723284,0.00023335,7]
[365637892,1749815440429,-500.0,0.00023337,2]
[365637893,1749815440438,-151.0,0.00023342,7]
[365637894,1749815440447,-1929.783163,0.00023342,2]
[365637895,1749815440456,-1929.783163,0.00023342,2]
[365637896,1749815440465,-364.0,0.00023355,2]
[365637897,1749815440475,-1100.0,0.0002337,2]
[365637898,1749815440484,-166.85183721,0.0002337,2]
[365637899,1749815440494,-1100.0,0.00023371,2]
[365637900,1749815440503,-500.0,0.00023373,2]
[365637901,1749815440512,-4535.5,0.00023387,2]
[365637902,1749815440521,-520.0,0.00023388,2]
[365637903,1749815440530,-960.19082361,0.00023417,9]
[365637904,1749815440539,-364.0,0.00023419,2]
[365637905,1749815440548,-1100.0,0.00023457,2]
[365637906,1749815440558,-4159.81261642,0.00023463,2]
[365637907,1749815440567,-1000.0,0.00023464,2]
[365637908,1749815440577,-3799.49,0.0002347,30]
[365637909,1749815440586,-1100.0,0.00023474,2]
[365637910,1749815440596,-213.24139183,0.000235,7]
[365637911,1749815440605,-151.0,0.000235,5]
[365637912,1749815440615,-151.0,0.000235,10]
[365637913,1749815440625,-151.0,0.000235,6]
[365637914,1749815440634,-1100.0,0.00023503,2]
[365637915,1749815440643,-1100.0,0.00023513,2]
[365637916,1749815440652,-5000.0,0.00023549,2]
[365637917,1749815440661,-960.19082361,0.00023555,9]
[365637918,1749815440670,-3811.09,0.0002356,4]
[365637919,1749815440679,-784.87,0.0002356,4]
[365637920,1749815440688,-1002.43,0.0002356,4]
[365637921,1749815440698,-165.883522,0.00023561,7]
[365637922,1749815440707,-165.883522,0.00023561,7]
[365637923,1749815440716,-151.0,0.00023561,7]
[365637924,1749815440725,-200.527538,0.00023561,7]
[365637925,1749815440735,-460.0,0.00023561,2]
[365637926,1749815440744,-570.74,0.00023561,4]
[365637927,1749815440753,-460.0,0.00023561,4]
[365637928,1749815440762,-1085.57,0.00023561,4]
[365637929,1749815440771,-460.0,0.00023561,4]
[365637930,1749815440781,-902.13,0.00023561,4]
[365637931,1749815440791,-1261.48,0.00023561,4]
[365637932,1749815440800,-362.17,0.00023561,4]
[365637933,1749815440809,-151.0,0.00023561,7]
[365637934,1749815440818,-460.0,0.00023561,4]
[365637935,1749815440827,-460.0,0.00023561,4]
[365637936,1749815440836,-665.95,0.00023561,4]
[365637937,1749815440846,-806.06,0.00023561,4]
[365637938,1749815440856,-460.0,0.00023561,4]
[365637939,1749815440866,-593.59,0.00023561,4]
[365637940,1749815440880,-1327.7,0.00023561,4]
[365637941,1749815440889,-903.85,0.00023561,4]
[365637942,1749815440898,-1473.46,0.00023561,4]
[365637943,1749815440908,-1100.0,0.00023563,2]
[365637944,1749815440917,-794.93,0.000236,7]
[365637945,1749815440927,-151.0,0.000236,8]
[365637946,1749815440936,-151.0,0.000236,8]
[365637947,1749815440945,-151.0,0.000236,8]
[365637948,1749815440955,-500.0,0.00023609,2]
[365637949,1749815440965,-500.0,0.0002362,2]
[365637950,1749815440974,-1100.0,0.00023621,2]
[365637951,1749815440983,-1100.0,0.00023622,2]
[365637952,1749815440992,-1500.0,0.0002364,2]
[365637953,1749815441001,-500.0,0.00023646,2]
[365637954,1749815441011,-800.0,0.00023666,2]
[365637955,1749815441021,-151.0,0.0002368,7]
[365637956,1749815441031,-151.0,0.0002368,7]
[365637957,1749815441040,-187.94426926,0.0002368,2]
[365637958,1749815441050,-168.12148562,0.0002368,2]
[365637959,1749815441059,-198.71264452,0.0002368,4]
[365637960,1749815441069,-198.71,0.0002368,4]
[365637961,1749815441079,-154.55427907,0.0002368,4]
[365637962,1749815441088,-154.55427907,0.0002368,4]
[365637963,1749815441097,-154.55427907,0.0002368,4]
[365637964,1749815441106,-154.55427907,0.0002368,4]
[365637965,1749815441116,-7559.55529621,0.0002368,2]
[365637966,1749815441125,-154.55427907,0.0002368,4]
[365637967,1749815441135,-154.55,0.0002368,4]
[365637968,1749815441145,-158.64659567,0.0002368,4]
[365637969,1749815441154,-158.64659567,0.0002368,4]
[365637970,1749815441164,-158.64659567,0.0002368,4]
[365637971,1749815441173,-158.64659567,0.0002368,4]
[365637972,1749815441183,-158.64659567,0.0002368,4]
[365637973,1749815441192,-158.64659567,0.0002368,4]
[365637974,1749815441201,-158.64659567,0.0002368,4]
[365637975,1749815441211,-158.64659567,0.0002368,4]
[365637976,1749815441220,-158.64,0.0002368,4]
[365637977,1749815441230,-166.57892546,0.0002368,4]
[365637978,1749815441239,-166.57892546,0.0002368,4]
[365637979,1749815441247,-166.57892546,0.0002368,4]
[365637980,1749815441257,-166.57892546,0.0002368,4]
[365637981,1749815441266,-166.57892546,0.0002368,4]
[365637982,1749815441276,-166.57892546,0.0002368,4]
[365637983,1749815441285,-166.57892546,0.0002368,4]
[365637984,1749815441295,-166.57892546,0.0002368,4]
[365637985,1749815441304,-166.57892546,0.0002368,4]
[365637986,1749815441314,-166.57892546,0.0002368,4]
[365637987,1749815441323,-166.57892546,0.0002368,4]
[365637988,1749815441336,-166.57892546,0.0002368,4]
[365637989,1749815441345,-166.57892546,0.0002368,4]
[365637990,1749815441355,-166.57892546,0.0002368,4]
[365637991,1749815441364,-166.57892546,0.0002368,4]
[365637992,1749815441375,-166.57892546,0.0002368,4]
[365637993,1749815441384,-166.57892546,0.0002368,4]
[365637994,1749815441394,-166.57892546,0.0002368,4]
[365637995,1749815441404,-166.57892546,0.0002368,4]
[365637996,1749815441415,-166.57,0.0002368,4]
[365637997,1749815441424,-245.28526043,0.0002368,4]
[365637998,1749815441434,-245.28526043,0.0002368,4]
[365637999,1749815441443,-245.28526043,0.0002368,4]
[365638000,1749815441453,-245.28526043,0.0002368,4]
[365638001,1749815441462,-245.28526043,0.0002368,4]
[365638002,1749815441472,-245.28526043,0.0002368,4]
[365638003,1749815441481,-245.28526043,0.0002368,4]
[365638004,1749815441491,-245.28526043,0.0002368,4]
[365638005,1749815441500,-245.28526043,0.0002368,4]
[365638006,1749815441510,-245.28526043,0.0002368,4]
[365638007,1749815441519,-245.28526043,0.0002368,4]
[365638008,1749815441529,-245.28526043,0.0002368,4]
[365638009,1749815441539,-245.28526043,0.0002368,4]
[365638010,1749815441549,-245.28526043,0.0002368,4]
[365638011,1749815441559,-245.28526043,0.0002368,4]
[365638012,1749815441569,-245.28526043,0.0002368,4]
[365638013,1749815441579,-245.28526043,0.0002368,4]
[365638014,1749815441589,-245.28526043,0.0002368,4]
[365638015,1749815441598,-245.28526043,0.0002368,4]
[365638016,1749815441608,-245.28,0.0002368,4]
[365638017,1749815441617,-572.33227433,0.0002368,4]
[365638018,1749815441627,-572.33227433,0.0002368,4]
[365638019,1749815441636,-572.33227433,0.0002368,4]
[365638020,1749815441646,-572.33227433,0.0002368,4]
[365638021,1749815441655,-572.33227433,0.0002368,4]
[365638022,1749815441664,-572.33227433,0.0002368,4]
[365638023,1749815441674,-572.33227433,0.0002368,4]
[365638024,1749815441683,-572.33227433,0.0002368,4]
[365638025,1749815441692,-572.33227433,0.0002368,4]
[365638026,1749815441702,-572.33227433,0.0002368,4]
[365638027,1749815441711,-572.33227433,0.0002368,4]
[365638028,1749815441721,-572.33227433,0.0002368,4]
[365638029,1749815441730,-572.33227433,0.0002368,4]
[365638030,1749815441740,-572.33227433,0.0002368,4]
[365638031,1749815441749,-572.33227433,0.0002368,4]
[365638032,1749815441759,-572.33227433,0.0002368,4]
[365638033,1749815441768,-572.33227433,0.0002368,4]
[365638034,1749815441777,-572.33227433,0.0002368,4]
[365638035,1749815441787,-572.33227433,0.0002368,4]
[365638036,1749815441796,-572.33,0.0002368,4]
[365638037,1749815441807,-960.19082361,0.00023693,9]
[365638038,1749815441816,-153.62936366,0.00023699,2]
[365638039,1749815441825,-273.6,0.000237,2]
[365638040,1749815441835,-5056.24902182,0.000237,7]
[365638041,1749815441845,-213.24139183,0.000237,10]
[365638042,1749815441855,-3000.0,0.000237,2]
[365638043,1749815441864,-151.0,0.000237,6]
[365638044,1749815441873,-151.0,0.000237,10]
[365638045,1749815441883,-215.0738,0.00023701,2]
[365638046,1749815441892,-500.0,0.00023707,2]
[365638047,1749815441901,-3000.0,0.0002371,2]
[365638048,1749815441911,-273.18552,0.0002371,7]
[365638049,1749815441920,-273.18552,0.0002371,7]
[365638050,1749815441929,-151.0,0.0002371,7]
[365638051,1749815441939,-3000.0,0.0002372,2]
[365638052,1749815441949,-3000.0,0.0002373,2]
[365638053,1749815441958,-3000.0,0.0002374,2]
[365638054,1749815441967,-151.0,0.0002374,7]
[365638055,1749815441976,-1929.783163,0.0002374,2]
[365638056,1749815441985,-1929.783163,0.0002374,2]
[365638057,1749815441995,-3000.0,0.0002375,2]
[365638058,1749815442003,-151.0,0.0002375,7]
[365638059,1749815442013,-282.393994,0.0002375,7]
[365638060,1749815442024,-151.0,0.0002375,7]
[365638061,1749815442034,-151.0,0.0002375,7]
[365638062,1749815442043,-151.0,0.0002375,7]
[365638063,1749815442053,-212.370818,0.0002375,7]
[365638064,1749815442062,-3000.0,0.0002376,2]
[365638065,1749815442072,-1100.0,0.00023765,2]
[365638066,1749815442083,-3000.0,0.0002377,2]
[365638067,1749815442092,-1100.0,0.00023771,2]
[365638068,1749815442102,-500.0,0.00023773,2]
[365638069,1749815442112,-500.0,0.00023773,2]
[365638070,1749815442121,-501.0376075,0.00023773,2]
[365638071,1749815442131,-401.04596371,0.00023773,2]
[365638072,1749815442140,-265.60785299,0.00023773,2]
[365638073,1749815442238,-500.0,0.00023773,2]
[365638074,1749815442248,-500.0,0.00023773,2]
[365638075,1749815442258,-500.0,0.00023773,2]
[365638076,1749815442267,-500.0,0.00023773,2]
[365638077,1749815442276,-500.0,0.00023773,2]
[365638078,1749815442285,-500.0,0.00023773,2]
[365638079,1749815442295,-504.61170123,0.00023773,2]
[365638080,1749815442304,-165.59022411,0.00023773,2]
[365638081,1749815442314,-500.0,0.00023773,2]
[365638082,1749815442323,-500.0,0.00023773,2]
[365638083,1749815442335,-500.0,0.00023773,2]
[365638084,1749815442345,-500.0,0.00023773,2]
[365638085,1749815442354,-347.90623513,0.00023773,2]
[365638086,1749815442363,-500.0,0.00023773,2]
[365638087,1749815442375,-500.0,0.00023773,2]
[365638088,1749815442384,-500.0,0.00023773,2]
[365638089,1749815442395,-500.0,0.00023773,2]
[365638090,1749815442405,-500.0,0.00023773,2]
[365638091,1749815442416,-600.0,0.00023773,2]
[365638092,1749815442426,-500.0,0.00023773,2]
[365638093,1749815442436,-500.0,0.00023773,2]
[365638094,1749815442446,-500.0,0.00023773,2]
[365638095,1749815442455,-500.0,0.00023773,2]
[365638096,1749815442465,-500.0,0.00023773,2]
[365638097,1749815442474,-500.0,0.00023773,2]
[365638098,1749815442484,-389.84975825,0.00023773,2]
[365638099,1749815442494,-500.0,0.00023773,2]
[365638100,1749815442504,-500.0,0.00023773,2]
[365638101,1749815442513,-500.0,0.00023773,2]
[365638102,1749815442523,-151.0,0.00023773,7]
[365638103,1749815442532,-153.315699,0.00023773,7]
[365638104,1749815442542,-213.525336,0.00023773,7]
[365638105,1749815442551,-213.525336,0.00023773,7]
[365638106,1749815442560,-418.19479,0.00023773,7]
[365638107,1749815442570,-179.783072,0.00023773,7]
[365638108,1749815442580,-418.19479,0.00023773,7]
[365638109,1749815442590,-179.783072,0.00023773,7]
[365638111,1749815442600,-151.0,0.00023773,7]
[365638112,1749815442609,-151.0,0.00023773,7]
[365638113,1749815442620,-671.753223,0.00023773,7]
[365638114,1749815442629,-671.753223,0.00023773,7]
[365638115,1749815442640,-185.631619,0.00023773,7]
[365638116,1749815442650,-185.631619,0.00023773,7]
[365638117,1749815442659,-151.0,0.00023773,7]
[365638118,1749815442669,-151.0,0.00023773,7]
[365638119,1749815442679,-15083.40418461,0.0002378,2]
[365638120,1749815442689,-3621.9196452,0.0002378,2]
[365638121,1749815442699,-204659.92120776,0.0002378,5]
[365638122,1749815442840,-11281.36803236,0.0002378,5]
[365638124,1749815443357,-451.44191085,0.00021368,4]
[365638125,1749815443371,-8.55808915,0.00021368,4]
[365638126,1749815443380,-460.0,0.00021642,4]
[365638127,1749815443390,-500.0,0.00021916,2]
[365638128,1749815443399,-94.78239997,0.00021916,2]
[365638129,1749815443413,-85.01622843,0.00021916,2]
[365638130,1749815443423,-500.0,0.00021916,2]
[365638132,1749815443432,-500.0,0.00021916,2]
[365638134,1749815443441,-500.0,0.00021916,2]
[365638136,1749815443451,-500.0,0.00021916,2]
[365638139,1749815443460,-500.0,0.00021916,2]
[365638141,1749815443469,-500.0,0.00021916,2]
[365638143,1749815443478,-500.0,0.00021916,2]
[365638144,1749815443487,-351.37238858,0.00021916,2]
[365638145,1749815443497,-500.0,0.00021916,2]
[365638146,1749815443506,-500.0,0.00021916,2]
[365638147,1749815443516,-500.0,0.00021916,2]
[365638148,1749815443525,-500.0,0.00021916,2]
[365638149,1749815443534,-160.0,0.00022932,2]
[365638150,1749815443544,-150826.05943926,0.0002378,5]
[365638151,1749815443554,-812490.36842615,0.0002378,5]
[365638492,1749815450119,-8.09991217,0.0002329,7]
[365638494,1749815450132,-142.90008783,0.0002329,7]
[365638496,1749815450141,-151.0,0.00023297,2]
[365638498,1749815450151,-151.0,0.00023335,7]
[365638500,1749815450160,-151.0,0.00023561,7]
[365638501,1749815450169,-151.0,0.00023773,7]
[365638502,1749815450179,-8022.40008256,0.0002378,5]
[365638512,1749815450280,2000.0,0.00022468,120]
[365638532,1749815450461,-500.0,0.00022466,2]
[365638534,1749815450471,-500.0,0.00022466,2]
[365638536,1749815450480,-500.0,0.00022466,2]
[365638538,1749815450489,-212.87470086,0.00022466,2]
[365638540,1749815450498,-1212.09,0.0002377,10]
[365638542,1749815450507,-7420.02047348,0.0002378,5]
[365638623,1749815472778,-208.217645,0.000198,30]
[365638634,1749815615160,182.0,0.00025004,120]
[365638635,1749815627297,200.0,0.00024987,120]
[365638637,1749815635985,200.0,0.00024987,120]
[365638639,1749815649344,6384.0,0.00024658,120]
[365638642,1749815712867,166.055403,0.00020054,67]
[365638643,1749815713279,166.055403,0.00020054,80]
[365638644,1749815713564,166.055403,0.00020054,93]
[365638645,1749815713950,166.055403,0.00020054,106]
[365638646,1749815714172,166.055403,0.00020054,119]
[365638698,1749816112937,200.0,0.00024999,60]
[365638707,1749816178098,165.089089,0.00013699,2]
[365638709,1749816186945,-155.24012157,0.00019293,2]
[365638717,1749816377034,2908500.41025647,0.00024657,120]
[365638719,1749816410368,2000.0,0.00019118,120]
[365638777,1749816632447,-289.212282,0.00019175,2]
[365638780,1749816632457,-200.03128011,0.00019193,2]
[365638783,1749816632467,-1200.0,0.00019292,2]
[365638786,1749816632476,-502.26042741,0.00019293,2]
[365638809,1749816632604,-8832.65397022,0.00019293,2]
[365638811,1749816632614,-200.03128008,0.0001938,2]
[365638813,1749816632624,-200.03128008,0.00019568,2]